fUST/lending_fUST_20250522
["ID","MTS","AMOUNT","RATE_DAILY","PERIOD"]
[361914442,1747887052915,-480.8,0.00024383,2]
[361914443,1747887052925,-430.0,0.00024383,2]
[361914444,1747887052935,-571.97,0.00024383,2]
[361914445,1747887052945,-430.0,0.00024383,2]
[361914446,1747887052954,-430.0,0.00024383,2]
[361914447,1747887052964,-430.0,0.00024383,2]
[361914448,1747887052975,-354.71,0.00024383,2]
[361914449,1747887052984,-870.57,0.00024383,2]
[361914450,1747887052994,-805.26,0.00024383,2]
[361914451,1747887053004,-430.0,0.00024383,2]
[361914452,1747887053014,-430.0,0.00024383,2]
[361914453,1747887053024,-430.0,0.00024383,2]
[361914454,1747887053034,-430.0,0.00024383,2]
[361914455,1747887053045,-2316.98,0.00024383,2]
[361914456,1747887053055,-151.0,0.000244,10]
[361914457,1747887053066,-1206.52233631,0.00024417,11]
[361914458,1747887053076,-562.5183011,0.00024475,2]
[361914459,1747887053087,-151.0,0.000245,9]
[361914460,1747887053097,-1278.466182,0.000245,2]
[361914461,1747887053107,-500.0,0.000245,2]
[361914462,1747887053117,-157.344456,0.000245,7]
[361914463,1747887053127,-158.829705,0.000245,7]
[361914464,1747887053137,-1206.52233631,0.00024555,11]
[361914465,1747887053147,-151.0,0.000246,8]
[361914466,1747887053157,-960.0,0.00024617,2]
[361914467,1747887053167,-430.0,0.00024657,2]
[361914468,1747887053177,-430.0,0.00024657,2]
[361914469,1747887053187,-430.0,0.00024657,2]
[361914470,1747887053196,-430.0,0.00024657,2]
[361914471,1747887053206,-352.83404005,0.00024657,2]
[361914472,1747887053216,-268.92,0.00024657,2]
[361914473,1747887053227,-556.42,0.00024657,2]
[361914474,1747887053237,-453.61,0.00024657,2]
[361914475,1747887053247,-430.0,0.00024657,2]
[361914476,1747887053257,-1419.92,0.00024657,2]
[361914477,1747887053364,-530.43,0.00024657,2]
[361914478,1747887053384,-582.86,0.00024657,2]
[361914479,1747887053394,-430.0,0.00024657,2]
[361914480,1747887053404,-430.0,0.00024657,2]
[361914481,1747887053413,-660.78,0.00024657,2]
[361914482,1747887053423,-1550.53,0.00024657,2]
[361914483,1747887053432,-940.52,0.00024657,2]
[361914484,1747887053442,-430.0,0.00024657,2]
[361914485,1747887053451,-493.15,0.00024657,2]
[361914486,1747887053461,-618.76,0.00024657,2]
[361914487,1747887053471,-204.23,0.00024657,2]
[361914488,1747887053480,-155.86,0.00024657,2]
[361914489,1747887053490,-1802.67,0.00024657,2]
[361914490,1747887053499,-527.12,0.00024657,2]
[361914491,1747887053509,-430.0,0.00024657,2]
[361914492,1747887053518,-430.0,0.00024657,2]
[361914493,1747887053527,-430.0,0.00024657,2]
[361914494,1747887053537,-2393.66,0.00024657,2]
[361914495,1747887053547,-469.79,0.00024657,2]
[361914496,1747887053556,-430.0,0.00024657,2]
[361914497,1747887053565,-430.0,0.00024657,2]
[361914498,1747887053575,-480.8,0.00024657,2]
[361914499,1747887053584,-430.0,0.00024657,2]
[361914500,1747887053593,-430.0,0.00024657,2]
[361914501,1747887053603,-399.35,0.00024657,2]
[361914502,1747887053613,-199.47,0.00024657,2]
[361914503,1747887053623,-870.57,0.00024657,2]
[361914504,1747887053635,-805.26,0.00024657,2]
[361914505,1747887053645,-430.0,0.00024657,2]
[361914506,1747887053654,-430.0,0.00024657,2]
[361914507,1747887053665,-430.0,0.00024657,2]
[361914508,1747887053675,-430.0,0.00024657,2]
[361914509,1747887053684,-2316.98,0.00024657,2]
[361914510,1747887053694,-500.0,0.00024658,2]
[361914511,1747887053706,-500.0,0.00024658,2]
[361914512,1747887053715,-500.0,0.00024658,2]
[361914513,1747887053726,-500.0,0.00024658,2]
[361914514,1747887053735,-500.0,0.00024658,2]
[361914515,1747887053744,-500.0,0.00024658,2]
[361914516,1747887053754,-500.0,0.00024658,2]
[361914517,1747887053763,-543.26387692,0.00024658,2]
[361914518,1747887053772,-500.0,0.00024658,2]
[361914519,1747887053783,-500.0,0.00024658,2]
[361914520,1747887053792,-500.0,0.00024658,2]
[361914521,1747887053802,-500.0,0.00024658,2]
[361914522,1747887053811,-500.0,0.00024658,2]
[361914523,1747887053820,-400.0,0.00024658,2]
[361914524,1747887053829,-500.0,0.00024658,2]
[361914525,1747887053839,-500.0,0.00024658,2]
[361914526,1747887053849,-381.49819721,0.00024658,2]
[361914527,1747887053859,-894.64583333,0.0002466,7]
[361914528,1747887053869,-7927.21556162,0.0002466,7]
[361914529,1747887053878,-4838.71619794,0.0002466,7]
[361914530,1747887054013,-2666.6143928,0.0002466,7]
[361914531,1747887054216,-430.0,0.00022465,2]
[361914532,1747887054226,-404.0,0.00024321,2]
[361914533,1747887054236,-421.88497088,0.0002466,7]
[361914534,1747887054245,-314.54559427,0.0002466,7]
[361914535,1747887054254,-659.96943485,0.00024693,11]
[361914536,1747887054322,-430.0,0.00021917,2]
[361914537,1747887054331,-437.04947362,0.00022191,2]
[361914538,1747887054341,-160.0,0.00022637,2]
[361914539,1747887054351,-546.55290146,0.00024693,11]
[361914540,1747887054361,-6357.94,0.000247,7]
[361914541,1747887054371,-8657.99,0.000247,7]
[361914542,1747887054380,-15691.47,0.000247,2]
[361914543,1747887054390,-1118.19582738,0.0002474,2]
[361914544,1747887054399,-8490.265998,0.0002474,2]
[361914545,1747887054409,-31616.8179915,0.0002475,2]
[361914546,1747887054419,-151.0,0.000248,6]
[361914547,1747887054428,-800.0,0.000248,2]
[361914548,1747887054438,-157.344456,0.0002482,3]
[361914549,1747887054447,-158.829705,0.0002482,3]
[361914550,1747887054456,-800.0,0.00024827,2]
[361914551,1747887054466,-1206.52233631,0.00024831,12]
[361914552,1747887054477,-562.51830111,0.00024858,2]
[361914553,1747887054487,-499.03913974,0.00024873,2]
[361914554,1747887054496,-500.0,0.00024873,2]
[361914555,1747887054506,-500.0,0.00024873,2]
[361914556,1747887054516,-500.0,0.00024873,2]
[361914557,1747887054525,-500.0,0.00024873,2]
[361914558,1747887054535,-500.0,0.00024873,2]
[361914559,1747887054546,-500.0,0.00024873,2]
[361914560,1747887054555,-500.0,0.00024873,2]
[361914561,1747887054564,-800.0,0.00024882,2]
[361914562,1747887054574,-282.096314,0.000249,2]
[361914563,1747887054584,-282.096314,0.000249,2]
[361914564,1747887054594,-151.0,0.000249,7]
[361914565,1747887054604,-151.36287,0.000249,7]
[361914566,1747887054613,-421.763332,0.000249,7]
[361914567,1747887054624,-421.763332,0.000249,7]
[361914568,1747887054635,-622.958263,0.000249,7]
[361914569,1747887054645,-622.958263,0.000249,7]
[361914570,1747887054654,-151.0,0.000249,7]
[361914571,1747887054665,-151.0,0.000249,7]
[361914572,1747887054674,-151.0,0.000249,7]
[361914573,1747887054683,-151.0,0.000249,7]
[361914574,1747887054692,-151.0,0.000249,7]
[361914575,1747887054702,-163.908154,0.000249,7]
[361914576,1747887054711,-151.0,0.000249,7]
[361914577,1747887054720,-10008.374948,0.000249,2]
[361914578,1747887054731,-866.645108,0.000249,7]
[361914579,1747887054741,-1351.673918,0.000249,7]
[361914580,1747887054751,-866.645108,0.000249,7]
[361914581,1747887054761,-1351.673918,0.000249,7]
[361914582,1747887054770,-2761.630829,0.000249,2]
[361914583,1747887054780,-151.0,0.000249,7]
[361914584,1747887054790,-2761.630829,0.000249,2]
[361914585,1747887054800,-151.0,0.000249,7]
[361914586,1747887054810,-1532.16899,0.000249,7]
[361914587,1747887054820,-151.0,0.000249,7]
[361914588,1747887054829,-1532.16899,0.000249,7]
[361914589,1747887054838,-1213.926323,0.000249,7]
[361914590,1747887054850,-1213.926323,0.000249,7]
[361914591,1747887054860,-151.0,0.000249,7]
[361914592,1747887054870,-151.0,0.000249,7]
[361914593,1747887054879,-151.0,0.000249,7]
[361914594,1747887054888,-1146.69034761,0.000249,2]
[361914595,1747887054898,-800.0,0.00024926,2]
[361914596,1747887054907,-430.0,0.00024931,2]
[361914597,1747887054918,-430.0,0.00024931,2]
[361914598,1747887054927,-251.91,0.00024931,2]
[361914599,1747887054937,-430.0,0.00024931,2]
[361914600,1747887054947,-556.42,0.00024931,2]
[361914601,1747887054957,-453.61,0.00024931,2]
[361914602,1747887054967,-430.0,0.00024931,2]
[361914603,1747887055015,-1419.92,0.00024931,2]
[361914604,1747887055082,-530.43,0.00024931,2]
[361914605,1747887055092,-430.0,0.00024931,2]
[361914606,1747887055101,-430.0,0.00024931,2]
[361914607,1747887055112,-660.78,0.00024931,2]
[361914608,1747887055122,-1550.53,0.00024931,2]
[361914609,1747887055131,-940.52,0.00024931,2]
[361914610,1747887055141,-430.0,0.00024931,2]
[361914611,1747887055151,-493.15,0.00024931,2]
[361914612,1747887055161,-618.76,0.00024931,2]
[361914613,1747887055171,-1802.67,0.00024931,2]
[361914614,1747887055181,-430.0,0.00024931,2]
[361914615,1747887055190,-430.0,0.00024931,2]
[361914616,1747887055200,-430.0,0.00024931,2]
[361914617,1747887055210,-2393.66,0.00024931,2]
[361914618,1747887055221,-430.0,0.00024931,2]
[361914619,1747887055231,-430.0,0.00024931,2]
[361914620,1747887055241,-480.8,0.00024931,2]
[361914621,1747887055250,-430.0,0.00024931,2]
[361914622,1747887055260,-430.0,0.00024931,2]
[361914623,1747887055269,-870.57,0.00024931,2]
[361914624,1747887055279,-805.26,0.00024931,2]
[361914625,1747887055288,-430.0,0.00024931,2]
[361914626,1747887055298,-430.0,0.00024931,2]
[361914627,1747887055308,-430.0,0.00024931,2]
[361914628,1747887055317,-430.0,0.00024931,2]
[361914629,1747887055327,-2316.98,0.00024931,2]
[361914630,1747887055337,-719.0,0.0002494,3]
[361914631,1747887055347,-719.0,0.0002494,3]
[361914632,1747887055356,-719.0,0.0002494,3]
[361914633,1747887055367,-152.0,0.0002494,3]
[361914634,1747887055376,-283.63057844,0.0002494,3]
[361914635,1747887055386,-152.0,0.0002494,3]
[361914636,1747887055395,-152.0,0.0002494,3]
[361914637,1747887055404,-152.0,0.0002494,3]
[361914638,1747887055414,-152.0,0.0002494,3]
[361914639,1747887055423,-152.0,0.0002494,3]
[361914640,1747887055432,-152.0,0.0002494,3]
[361914641,1747887055442,-187.2354081,0.0002494,3]
[361914642,1747887055452,-1206.52233631,0.00024969,12]
[361914643,1747887055461,-266.0,0.0002497,120]
[361914644,1747887055472,-150.0,0.00024973,2]
[361914645,1747887055481,-600.0,0.00024973,2]
[361914646,1747887055491,-266.0,0.0002498,120]
[361914647,1747887055501,-1000.0,0.0002498,5]
[361914648,1747887055511,-266.0,0.0002499,120]
[361914649,1747887055520,-157.344456,0.00024993,10]
[361914650,1747887055530,-158.829705,0.00024993,10]
[361914651,1747887055540,-40081.91944586,0.00025,2]
[361914652,1747887055551,-20039.67449188,0.00025,3]
[361914653,1747887055560,-90622.03565578,0.00025,20]
[361914654,1747887055575,-3411.09,0.00025,20]
[361914655,1747887055591,-6898.87908524,0.00025,20]
[361914657,1747887098915,1744.65,0.00015,2]
[361914676,1747887838013,163.308839,0.00013699,2]
[361914679,1747888041161,-767.24177081,0.0002,5]
[361914680,1747888045174,-101.39947919,0.0002,5]
[361914681,1747888045195,-868.64125,0.0002,5]
[361914682,1747888045217,-1132.17813227,0.00020606,2]
[361914683,1747888045239,-250.0,0.00020814,2]
[361914684,1747888045260,-1979.3556557,0.00021053,2]
[361914685,1747888045281,-326.86184043,0.00021295,2]
[361914686,1747888045305,-216.29791,0.00021508,2]
[361914687,1747888045325,-300.0,0.00021915,2]
[361914688,1747888045349,-500.0,0.00021916,2]
[361914689,1747888045372,-500.0,0.00021916,2]
[361914690,1747888045392,-500.0,0.00021916,2]
[361914691,1747888045414,-500.0,0.00021916,2]
[361914692,1747888045434,-191.67145433,0.00021916,2]
[361914693,1747888045457,-500.0,0.00021916,2]
[361914694,1747888045479,-500.0,0.00021916,2]
[361914695,1747888045502,-500.0,0.00021916,2]
[361914696,1747888045525,-500.0,0.00021916,2]
[361914697,1747888045547,-500.0,0.00021916,2]
[361914698,1747888045569,-500.0,0.00021916,2]
[361914699,1747888045590,-602.6274672,0.00021916,2]
[361914700,1747888045611,-500.0,0.00021916,2]
[361914701,1747888045633,-500.0,0.00021916,2]
[361914702,1747888045655,-500.0,0.00021916,2]
[361914704,1747888045677,-500.0,0.00021916,2]
[361914705,1747888045700,-450.59699443,0.00021916,2]
[361914706,1747888045730,-49.40300557,0.00021916,2]
[361914707,1747888045754,-500.0,0.00021916,2]
[361914708,1747888045777,-332.23362769,0.00021916,2]
[361914711,1747888121228,5314.997843,0.0002,120]
[361914712,1747888122693,342.23130186,0.00015,2]
[361914830,1747888232038,-228.74419284,0.0002,7]
[361914831,1747888232048,-215.4140115,0.00021291,2]
[361914832,1747888232058,-300.0,0.00021915,2]
[361914833,1747888232068,-167.76637231,0.00021916,2]
[361914834,1747888232078,-450.0,0.00021916,2]
[361914835,1747888232088,-500.0,0.00021916,2]
[361914836,1747888232098,-500.0,0.00021916,2]
[361914837,1747888232108,-271.56078747,0.00021916,2]
[361914838,1747888232147,-228.43921253,0.00021916,2]
[361914839,1747888232156,-91.65275655,0.00021916,2]
[361914868,1747888237919,-408.34724345,0.00021916,2]
[361914869,1747888237929,-500.0,0.00021916,2]
[361914870,1747888237940,-500.0,0.00021916,2]
[361914871,1747888237949,-500.0,0.00021916,2]
[361914872,1747888237960,-500.0,0.00021916,2]
[361914873,1747888237969,-500.0,0.00021916,2]
[361914874,1747888237980,-500.0,0.00021916,2]
[361914875,1747888237992,-251.83847364,0.00021916,2]
[361914876,1747888238002,-259.58363792,0.00021916,2]
[361914877,1747888238011,-430.0,0.00021917,2]
[361914878,1747888238021,-430.0,0.00021917,2]
[361914879,1747888238030,-430.0,0.00021917,2]
[361914880,1747888238044,-430.0,0.00021917,2]
[361914881,1747888238054,-430.0,0.00021917,2]
[361914882,1747888238064,-450.0,0.00021917,2]
[361914883,1747888238075,-488.34977376,0.00021917,2]
[361914884,1747888238085,-430.0,0.00021917,2]
[361914885,1747888238094,-330.90159143,0.00021917,2]
[361914886,1747888238104,-430.0,0.00021917,2]
[361914887,1747888238114,-450.0,0.00021917,2]
[361914888,1747888238126,-430.0,0.00021917,2]
[361914889,1747888238136,-430.0,0.00021917,2]
[361914890,1747888238146,-500.0,0.00021917,2]
[361914891,1747888238156,-169.93744485,0.00021917,2]
[361914892,1747888238165,-430.0,0.00021917,2]
[361914893,1747888238176,-430.0,0.00021917,2]
[361914894,1747888238186,-430.0,0.00021917,2]
[361914895,1747888238196,-430.0,0.00021917,2]
[361914896,1747888238206,-430.0,0.00021917,2]
[361914897,1747888238217,-430.0,0.00021917,2]
[361914898,1747888238227,-400.0,0.00021917,2]
[361914899,1747888238236,-430.0,0.00021917,2]
[361914900,1747888238246,-460.02630049,0.00021917,2]
[361914901,1747888238256,-430.0,0.00021917,2]
[361914902,1747888238266,-430.0,0.00021917,2]
[361914903,1747888238275,-426.80223193,0.00021917,2]
[361914904,1747888238285,-430.0,0.00021917,2]
[361914905,1747888238295,-234.00821005,0.00021917,2]
[361914906,1747888238305,-430.0,0.00021917,2]
[361914907,1747888238314,-402.63106356,0.00021917,2]
[361914908,1747888238323,-430.0,0.00021917,2]
[361914909,1747888238333,-430.0,0.00021917,2]
[361914910,1747888238343,-275.63735612,0.00021917,2]
[361914911,1747888238353,-430.0,0.00021917,2]
[361914912,1747888238363,-430.0,0.00021917,2]
[361914913,1747888238373,-430.0,0.00021917,2]
[361914914,1747888238383,-430.0,0.00021917,2]
[361914915,1747888238392,-430.0,0.00021917,2]
[361914916,1747888238402,-430.0,0.00021917,2]
[361914917,1747888238412,-430.0,0.00021917,2]
[361914918,1747888238422,-430.0,0.00021917,2]
[361914919,1747888238431,-430.0,0.00021917,2]
[361914920,1747888238441,-430.0,0.00021917,2]
[361914921,1747888238451,-430.0,0.00021917,2]
[361914922,1747888238461,-430.0,0.00021917,2]
[361914923,1747888238471,-430.0,0.00021917,2]
[361914924,1747888238481,-430.0,0.00021917,2]
[361914925,1747888238492,-430.0,0.00021917,2]
[361914926,1747888238501,-430.0,0.00021917,2]
[361914927,1747888238511,-430.0,0.00021917,2]
[361914928,1747888238522,-430.0,0.00021917,2]
[361914929,1747888238532,-430.0,0.00021917,2]
[361914930,1747888238541,-430.0,0.00021917,2]
[361914931,1747888238551,-430.0,0.00021917,2]
[361914932,1747888238562,-430.0,0.00021917,2]
[361914933,1747888238572,-430.0,0.00021917,2]
[361914934,1747888238581,-430.0,0.00021917,2]
[361914935,1747888238591,-430.0,0.00021917,2]
[361914936,1747888238600,-488.12,0.00021917,2]
[361914937,1747888238610,-352.85883037,0.00021917,2]
[361914938,1747888238622,-430.0,0.00021917,2]
[361914939,1747888238632,-430.0,0.00021917,2]
[361914940,1747888238642,-450.0,0.00021917,2]
[361914941,1747888238652,-453.95,0.00021917,2]
[361914942,1747888238662,-225.82412333,0.00021917,2]
[361914943,1747888238672,-430.0,0.00021917,2]
[361914944,1747888238681,-450.0,0.00021917,2]
[361914945,1747888238691,-430.0,0.00021917,2]
[361914946,1747888238700,-430.0,0.00021917,2]
[361914947,1747888238710,-430.0,0.00021917,2]
[361914948,1747888238720,-450.0,0.00021917,2]
[361914949,1747888238730,-430.0,0.00021917,2]
[361914950,1747888238739,-430.0,0.00021917,2]
[361914951,1747888238749,-430.0,0.00021917,2]
[361914952,1747888238759,-430.0,0.00021917,2]
[361914953,1747888238770,-429.6,0.00021917,2]
[361914954,1747888238780,-430.0,0.00021917,2]
[361914955,1747888238790,-430.0,0.00021917,2]
[361914956,1747888238799,-430.0,0.00021917,2]
[361914957,1747888238808,-430.0,0.00021917,2]
[361914958,1747888238818,-386.97602,0.00021917,2]
[361914959,1747888238858,-43.02398,0.00021917,2]
[361914960,1747888238868,-430.0,0.00021917,2]
[361914961,1747888238890,-430.0,0.00021917,2]
[361914962,1747888238901,-430.0,0.00021917,2]
[361914963,1747888238910,-495.59,0.00021917,2]
[361914964,1747888238920,-430.0,0.00021917,2]
[361914965,1747888238930,-430.0,0.00021917,2]
[361914966,1747888238940,-430.0,0.00021917,2]
[361914967,1747888238951,-430.0,0.00021917,2]
[361914968,1747888238961,-430.0,0.00021917,2]
[361914969,1747888238971,-430.0,0.00021917,2]
[361914970,1747888238982,-430.0,0.00021917,2]
[361914971,1747888238991,-1427.12,0.00021917,2]
[361914972,1747888239001,-430.0,0.00021917,2]
[361914973,1747888239011,-430.0,0.00021917,2]
[361914974,1747888239022,-729.47,0.00021917,2]
[361914975,1747888239032,-430.0,0.00021917,2]
[361914976,1747888239047,-430.0,0.00021917,2]
[361914977,1747888239057,-430.0,0.00021917,2]
[361914978,1747888239067,-430.0,0.00021917,2]
[361914979,1747888239077,-430.0,0.00021917,2]
[361914980,1747888239087,-430.0,0.00021917,2]
[361914981,1747888239097,-489.86,0.00021917,2]
[361914982,1747888239106,-430.0,0.00021917,2]
[361914983,1747888239119,-430.0,0.00021917,2]
[361914984,1747888239128,-430.0,0.00021917,2]
[361914985,1747888239138,-430.0,0.00021917,2]
[361914986,1747888239148,-430.0,0.00021917,2]
[361914987,1747888239158,-430.0,0.00021917,2]
[361914988,1747888239168,-1894.98,0.00021917,2]
[361914989,1747888239178,-430.0,0.00021917,2]
[361914990,1747888239188,-430.0,0.00021917,2]
[361914991,1747888239198,-430.0,0.00021917,2]
[361914992,1747888239207,-429.86794015,0.00021917,2]
[361914993,1747888239217,-430.0,0.00021917,2]
[361914994,1747888239228,-430.0,0.00021917,2]
[361914995,1747888239239,-430.0,0.00021917,2]
[361914996,1747888239248,-430.0,0.00021917,2]
[361914997,1747888239258,-430.0,0.00021917,2]
[361914998,1747888239268,-430.0,0.00021917,2]
[361914999,1747888239278,-430.0,0.00021917,2]
[361915000,1747888239288,-430.0,0.00021917,2]
[361915001,1747888239299,-430.0,0.00021917,2]
[361915002,1747888239308,-430.0,0.00021917,2]
[361915003,1747888239318,-430.0,0.00021917,2]
[361915004,1747888239328,-430.0,0.00021917,2]
[361915005,1747888239338,-430.0,0.00021917,2]
[361915006,1747888239348,-430.0,0.00021917,2]
[361915007,1747888239358,-430.0,0.00021917,2]
[361915008,1747888239367,-430.0,0.00021917,2]
[361915009,1747888239377,-430.0,0.00021917,2]
[361915010,1747888239387,-430.0,0.00021917,2]
[361915011,1747888239397,-430.0,0.00021917,2]
[361915012,1747888239408,-430.0,0.00021917,2]
[361915013,1747888239417,-430.0,0.00021917,2]
[361915014,1747888239428,-430.0,0.00021917,2]
[361915016,1747888239438,-430.0,0.00021917,2]
[361915018,1747888239447,-430.0,0.00021917,2]
[361915020,1747888239458,-689.2,0.00021917,2]
[361915021,1747888239467,-177.56,0.00021917,2]
[361915022,1747888239478,-637.5,0.00021917,2]
[361915023,1747888239492,-500.0,0.00021917,2]
[361915024,1747888239503,-500.0,0.00021917,2]
[361915025,1747888239513,-500.0,0.00021917,2]
[361915026,1747888239523,-430.0,0.00021917,2]
[361915027,1747888239533,-430.0,0.00021917,2]
[361915028,1747888239543,-430.0,0.00021917,2]
[361915029,1747888239554,-430.0,0.00021917,2]
[361915030,1747888239563,-430.0,0.00021917,2]
[361915031,1747888239573,-430.0,0.00021917,2]
[361915032,1747888239583,-430.0,0.00021917,2]
[361915033,1747888239593,-461.43,0.00021917,2]
[361915034,1747888239603,-430.0,0.00021917,2]
[361915035,1747888239613,-430.0,0.00021917,2]
[361915036,1747888239622,-430.0,0.00021917,2]
[361915037,1747888239632,-430.0,0.00021917,2]
[361915038,1747888239642,-210.62,0.00021917,2]
[361915039,1747888239652,-255.91,0.00021917,2]
[361915040,1747888239663,-430.0,0.00021917,2]
[361915041,1747888239674,-430.0,0.00021917,2]
[361915042,1747888239685,-1106.74,0.00021917,2]
[361915043,1747888239695,-172.17639445,0.00021917,2]
[361915044,1747888239706,-1260.04,0.00021917,2]
[361915045,1747888239716,-430.0,0.00021917,2]
[361915046,1747888239731,-430.0,0.00021917,2]
[361915047,1747888239903,-430.0,0.00021917,2]
[361915048,1747888239914,-217.88353854,0.00021917,2]
[361915050,1747888239923,-1834.27,0.00021917,2]
[361915051,1747888239933,-430.0,0.00021917,2]
[361915053,1747888239944,-500.0,0.0002219,2]
[361915055,1747888239954,-587.82562322,0.0002219,2]
[361915057,1747888239965,-555.37812864,0.0002219,2]
[361915059,1747888239975,-430.0,0.00022191,2]
[361915061,1747888239985,-554.31,0.00022191,2]
[361915063,1747888239994,-430.0,0.00022191,2]
[361915065,1747888240003,-430.0,0.00022191,2]
[361915067,1747888240012,-430.0,0.00022191,2]
[361915069,1747888240022,-466.77,0.00022191,2]
[361915071,1747888240031,-465.34,0.00022191,2]
[361915073,1747888240045,-430.0,0.00022191,2]
[361915075,1747888240055,-430.0,0.00022191,2]
[361915077,1747888240064,-265.5705496,0.00022191,2]
[361915079,1747888240073,-233.9,0.00022191,2]
[361915081,1747888240084,-430.0,0.00022191,2]
[361915083,1747888240093,-430.0,0.00022191,2]
[361915085,1747888240103,-430.0,0.00022191,2]
[361915087,1747888240113,-405.38,0.00022191,2]
[361915088,1747888240123,-430.0,0.00022191,2]
[361915089,1747888240133,-430.0,0.00022191,2]
[361915090,1747888240142,-287.8,0.00022191,2]
[361915091,1747888240153,-430.0,0.00022191,2]
[361915092,1747888240162,-430.0,0.00022191,2]
[361915093,1747888240172,-430.0,0.00022191,2]
[361915094,1747888240187,-430.0,0.00022191,2]
[361915095,1747888240198,-430.0,0.00022191,2]
[361915096,1747888240208,-430.0,0.00022191,2]
[361915097,1747888240218,-430.0,0.00022191,2]
[361915098,1747888240228,-430.0,0.00022191,2]
[361915099,1747888240238,-430.0,0.00022191,2]
[361915100,1747888240248,-430.0,0.00022191,2]
[361915101,1747888240257,-430.0,0.00022191,2]
[361915102,1747888240268,-512.28,0.00022191,2]
[361915103,1747888240278,-488.12,0.00022191,2]
[361915104,1747888240288,-430.0,0.00022191,2]
[361915105,1747888240298,-430.0,0.00022191,2]
[361915106,1747888240308,-430.0,0.00022191,2]
[361915107,1747888240318,-360.17,0.00022191,2]
[361915108,1747888240329,-430.0,0.00022191,2]
[361915109,1747888240339,-503.66,0.00022191,2]
[361915110,1747888240349,-430.0,0.00022191,2]
[361915111,1747888240359,-430.0,0.00022191,2]
[361915112,1747888240369,-568.76,0.00022191,2]
[361915113,1747888240380,-533.08,0.00022191,2]
[361915114,1747888240392,-578.08,0.00022191,2]
[361915115,1747888240402,-430.0,0.00022191,2]
[361915116,1747888240411,-430.0,0.00022191,2]
[361915117,1747888240421,-430.0,0.00022191,2]
[361915118,1747888240431,-495.59,0.00022191,2]
[361915119,1747888240440,-430.0,0.00022191,2]
[361915120,1747888240450,-430.0,0.00022191,2]
[361915121,1747888240459,-430.0,0.00022191,2]
[361915122,1747888240469,-430.0,0.00022191,2]
[361915123,1747888240481,-430.0,0.00022191,2]
[361915124,1747888240490,-1427.12,0.00022191,2]
[361915125,1747888240500,-430.0,0.00022191,2]
[361915126,1747888240509,-430.0,0.00022191,2]
[361915127,1747888240519,-729.47,0.00022191,2]
[361915128,1747888240528,-430.0,0.00022191,2]
[361915129,1747888240538,-430.0,0.00022191,2]
[361915130,1747888240548,-430.0,0.00022191,2]
[361915131,1747888240558,-430.0,0.00022191,2]
[361915132,1747888240568,-489.86,0.00022191,2]